bitfinex/quotes_ETHUSD_20250923
["timestamp","ask_amount","ask_price","bid_price","bid_amount"]
[1758640473289,5.43972621,4192.2,4192.1,0.004]
[1758640473599,10.3138768,4192.2,4192.1,0.004]
[1758640473745,10.9844768,4192.2,4192.1,0.004]
[1758640474078,11.7764768,4192.2,4192.1,0.004]
[1758640475686,13.8404768,4192.2,4192.1,0.004]
[1758640475984,3.86849443,4192.2,4192.1,0.004]
[1758640476188,7.92849443,4192.2,4192.1,0.004]
[1758640476386,0.35602369,4192.2,4192.1,2.63523927]
[1758640476550,0.22251481,4192.2,4192.1,3.57461823]
[1758640476898,0.22251481,4192.2,4192.1,18.07461823]
[1758640477092,0.22257838,4192.2,4192.1,15.1871]
[1758640477256,0.22257838,4192.2,4192.1,17.57253927]
[1758640477783,0.22257838,4192.2,4192.1,15.1871]
[1758640477996,0.35617679,4192.2,4192.1,14.504]
[1758640478153,0.35617679,4192.2,4192.1,17.57253927]
[1758640478348,0.35617679,4192.2,4192.1,16.88943927]
[1758640478696,0.35617679,4192.2,4192.1,17.32673927]
[1758640478877,0.35617679,4192.2,4192.1,17.57253927]
[1758640479080,8.15779447,4192.2,4192.1,14.504]
[1758640479380,8.08685044,4192.2,4192.1,14.504]
[1758640479560,8.08605044,4192.2,4192.1,14.504]
[1758640479757,10.47143281,4192.2,4192.1,14.504]
[1758640480103,7.92868518,4192.2,4192.1,14.504]
[1758640480271,7.41545044,4192.2,4192.1,14.504]
[1758640480468,9.17229341,4192.2,4192.1,14.504]
[1758640480673,8.93289341,4192.2,4192.1,14.504]
[1758640480997,7.92887493,4192.2,4192.1,14.504]
[1758640481180,8.60567493,4192.2,4192.1,14.504]
[1758640481366,3.86887493,4192.2,4192.1,14.504]
[1758640481565,7.41545044,4192.2,4192.1,14.504]
[1758640482461,7.92913797,4192.2,4192.1,14.504]
[1758640483185,7.41545044,4192.2,4192.1,16.88943927]
[1758640483358,7.41545044,4192.2,4192.1,14.504]
[1758640484358,7.92948262,4192.2,4192.1,14.504]
[1758640484676,8.97065088,4192.2,4192.1,14.504]
[1758640485089,8.73435088,4192.2,4192.1,14.504]
[1758640485390,8.5127692,4192.2,4192.1,14.504]
[1758640486089,8.7490692,4192.2,4192.1,14.504]
[1758640486259,7.70790094,4192.2,4192.1,14.504]
[1758640486460,7.70790094,4192.2,4192.1,16.88943927]
[1758640486659,7.19386876,4192.2,4192.1,16.88943927]
[1758640486861,7.19386876,4192.2,4192.1,14.504]
[1758640487087,7.70802777,4192.2,4192.1,14.504]
[1758640488810,7.94432777,4192.2,4192.1,14.504]
[1758640489364,7.70802777,4192.2,4192.1,14.504]
[1758640490262,10.32971014,4192.2,4192.1,14.504]
[1758640490566,9.09748659,4192.2,4192.1,14.504]
[1758640491578,11.70607536,4192.2,4192.1,14.504]
[1758640491784,12.14657536,4192.2,4192.1,14.504]
[1758640492171,9.76119299,4192.2,4192.1,14.504]
[1758640492358,7.93123417,4192.2,4192.1,14.504]
[1758640493803,7.93123417,4192.2,4192.1,14.7302]
[1758640494010,7.93123417,4192.2,4192.1,14.504]
[1758640494205,10.31661654,4192.2,4192.1,14.504]
[1758640494512,12.09460988,4192.2,4192.1,0.004]
[1758640494721,2.38555309,4191.9,4191.6,0.004]
[1758640495021,3.0,4191.7,4191.6,0.004]
[1758640495193,3.87123417,4191.7,4191.6,0.004]
[1758640495377,4.90282097,4191.7,4191.6,0.004]
[1758640495810,4.93023417,4191.7,4191.6,0.6946]
[1758640496012,5.04943417,4191.7,4191.6,15.1946]
[1758640496223,5.04943417,4191.7,4191.6,14.7302]
[1758640496518,5.04943417,4191.7,4191.6,14.504]
[1758640496721,5.28573417,4191.7,4191.6,14.504]
[1758640496923,6.55480759,4191.7,4191.6,14.504]
[1758640497124,1.81900759,4191.7,4191.6,14.504]
[1758640497424,5.87809524,4191.7,4191.6,14.504]
[1758640498273,12.73256215,4191.7,4191.6,0.004]
[1758640498473,13.58860716,4191.7,4191.6,0.004]
[1758640498680,12.73256215,4191.7,4191.6,0.004]
[1758640500226,4.81909524,4191.7,4191.6,0.004]
[1758640500402,8.04947841,4191.7,4191.6,0.004]
[1758640500803,10.43514532,4191.7,4191.6,0.004]
[1758640501515,11.11194532,4191.7,4191.6,0.004]
[1758640501719,8.04947841,4191.7,4191.6,0.004]
[1758640501918,10.43514532,4191.7,4191.6,0.004]
[1758640502102,9.67230056,4191.7,4191.6,0.004]
[1758640502504,0.87127841,4191.7,4191.6,3.08032382]
[1758640502689,0.3571194,4191.7,4191.6,3.08032382]
[1758640503082,0.3571194,4191.7,4191.6,17.58032382]
[1758640503276,0.3571194,4191.7,4191.6,16.88972382]
[1758640503609,0.3571194,4191.7,4191.6,17.58032382]
[1758640504230,0.3571194,4191.7,4191.6,15.1946]
[1758640504412,4.4151194,4191.7,4191.6,14.504]
[1758640504581,8.14580929,4191.7,4191.6,14.504]
[1758640504920,7.92854699,4191.7,4191.6,14.504]
[1758640505164,3.87054699,4191.7,4191.6,17.11592382]
[1758640505363,3.3563194,4191.7,4191.6,15.1946]
[1758640505580,3.3563194,4191.7,4191.6,14.504]
[1758640507232,3.3563194,4191.7,4191.6,16.88972382]
[1758640507433,3.3563194,4191.7,4191.6,15.1946]
[1758640507769,0.3563194,4191.7,4191.6,19.74416045]
[1758640508366,0.2224064,4191.7,4191.6,19.74416045]
[1758640508678,0.35641045,4191.7,4191.6,19.74416045]
[1758640508889,0.35641045,4191.7,4191.6,23.80216045]
[1758640511372,0.2224064,4191.7,4191.6,23.80216045]
[1758640511763,0.001,4192.2,4192.1,2.38543927]
[1758640511960,0.13499357,4192.2,4192.1,6.92053455]
[1758640512211,0.13499357,4192.2,4192.1,7.61033455]
[1758640512515,0.13495618,4192.2,4192.1,0.1192]
[1758640512690,0.13495618,4192.2,4192.1,18.558]
[1758640512862,0.13495618,4192.2,4192.1,14.5]
[1758640513506,0.13495618,4192.2,4192.1,16.88543927]
[1758640513790,0.13495618,4192.2,4192.1,14.5]
[1758640513995,0.37855618,4192.2,4192.1,14.5]
[1758640514183,0.37855618,4192.2,4191.6,0.004]
[1758640514184,5.38549173,4192.1,4191.6,0.004]
[1758640514506,3.1192,4191.9,4191.6,0.004]
[1758640514683,3.1192,4191.9,4191.6,14.504]
[1758640514684,0.13395618,4191.8,4191.6,14.504]
[1758640514887,0.81275618,4191.7,4191.6,14.504]
[1758640515090,10.76993924,4191.7,4191.6,14.504]
[1758640515276,12.08279413,4191.7,4191.6,14.504]
[1758640515594,9.69712722,4191.7,4191.6,14.504]
[1758640516296,12.08279413,4191.7,4191.6,14.504]
[1758640516464,9.92035336,4191.7,4191.6,14.504]
[1758640516666,9.24155336,4191.7,4191.6,14.504]
[1758640516861,0.87169847,4191.7,4191.6,14.504]
[1758640517067,0.35718232,4191.7,4191.6,15.1938]
[1758640517279,0.35718232,4191.7,4191.6,17.57952382]
[1758640518296,0.35818232,4191.7,4191.6,14.504]
[1758640518994,0.35818232,4191.7,4191.6,17.13782382]
[1758640519199,0.35818232,4191.7,4191.6,21.63652382]
[1758640519698,0.35818232,4191.7,4191.6,18.561]
[1758640520121,0.35818232,4191.7,4191.6,14.504]
[1758640521079,0.35818232,4191.7,4191.6,16.88972382]
[1758640521298,0.35818232,4191.7,4191.6,14.504]
[1758640522676,4.97504832,4191.7,4191.6,14.504]
[1758640522890,4.55149847,4191.7,4191.6,14.504]
[1758640523197,3.87269847,4191.7,4191.6,14.504]
[1758640523802,4.23549847,4191.7,4191.6,14.504]
[1758640524029,4.67069847,4191.7,4191.6,14.504]
[1758640524626,8.16769633,4191.7,4191.6,14.504]
[1758640524795,5.34682942,4191.7,4191.6,14.504]
[1758640524995,5.10322942,4191.7,4191.6,14.504]
[1758640525502,9.16022942,4191.7,4191.6,14.504]
[1758640526918,9.15922942,4191.7,4191.6,14.504]
[1758640527113,12.22369633,4191.7,4191.6,14.504]
[1758640528632,13.01569633,4191.7,4191.6,14.504]
[1758640529501,13.01489633,4191.7,4191.6,14.504]
[1758640530429,13.01489633,4191.7,4191.6,0.004]
[1758640530646,0.792,4191.2,4189.9,2.50585494]
[1758640530944,0.1192,4190.5,4190.4,14.5]
[1758640531161,4.39842614,4190.5,4190.4,14.5]
[1758640531301,4.91294229,4190.5,4190.4,14.5]
[1758640531858,11.77009236,4190.5,4190.4,14.5]
[1758640532741,11.76989083,4190.5,4190.4,14.5]
[1758640532957,0.792,4190.1,4189.8,0.004]
[1758640533108,6.1786918,4189.9,4189.8,0.004]
[1758640533310,6.91623256,4189.9,4189.8,0.004]
[1758640533506,7.59503256,4189.9,4189.8,0.004]
[1758640533747,7.59483975,4189.9,4189.8,0.004]
[1758640533957,7.99052031,4189.9,4189.8,0.004]
[1758640534810,5.60382851,4189.9,4189.8,0.004]
[1758640535243,7.47600416,4189.9,4189.8,0.004]
[1758640536438,5.08931236,4189.9,4189.8,0.004]
[1758640536644,7.47600416,4189.9,4189.8,0.004]
[1758640536842,37.65253906,4189.9,4189.8,0.004]
[1758640537030,3.17897665,4189.4,4189.3,0.004]
[1758640537223,11.01539623,4189.4,4189.3,0.004]
[1758640537739,11.69419623,4189.4,4189.3,0.004]
[1758640537941,11.81399858,4189.4,4189.3,0.004]
[1758640538537,2.38720458,4189.0,4188.9,0.004]
[1758640538738,10.17866658,4189.0,4188.9,0.004]
[1758640538935,12.90119921,4189.0,4188.9,0.004]
[1758640539246,12.38881164,4189.0,4188.9,0.004]
[1758640541419,12.52180553,4189.0,4188.9,0.004]
[1758640541615,5.39880095,4189.0,4188.9,0.004]
[1758640541950,13.90800553,4189.0,4188.9,0.004]
[1758640542359,14.15070553,4189.0,4188.9,0.004]
[1758640542542,14.58650553,4189.0,4188.9,0.004]
[1758640543249,15.09688792,4189.0,4188.9,0.004]
[1758640543637,14.66108792,4189.0,4188.9,0.004]
[1758640543864,8.29638792,4189.0,4188.9,0.004]
[1758640544035,14.41839627,4189.0,4188.9,0.004]
[1758640544628,14.66109627,4189.0,4188.9,0.004]
[1758640544935,15.09689627,4189.0,4188.9,0.004]
[1758640545127,15.40608961,4189.0,4188.9,0.004]
[1758640545454,14.66109627,4189.0,4188.9,0.004]
[1758640545661,15.37919904,4189.0,4188.9,0.004]
[1758640546452,15.81499904,4189.0,4188.9,0.004]
[1758640547156,15.37919904,4189.0,4188.9,0.004]
[1758640547659,15.13649904,4189.0,4188.9,0.004]
[1758640548565,15.37919904,4189.0,4188.9,0.004]
[1758640548746,15.81499904,4189.0,4188.9,0.004]
[1758640551175,15.13649904,4189.0,4188.9,0.004]
[1758640551490,0.86531605,4189.0,4188.9,0.004]
[1758640551779,0.35492531,4189.0,4188.9,0.6743]
[1758640551952,3.35492531,4189.0,4188.9,0.6743]
[1758640552149,3.35492531,4189.0,4188.9,3.06156157]
[1758640552474,0.22207443,4189.0,4188.9,3.06156157]
[1758640553239,0.22207443,4189.0,4188.9,17.56156157]
[1758640554093,0.22207443,4189.0,4188.9,18.26198285]
[1758640554259,0.22207443,4189.0,4188.9,18.38118285]
[1758640554452,0.22127443,4189.0,4188.9,18.38118285]
[1758640555274,0.22127443,4189.0,4188.9,17.68076157]
[1758640560059,0.35478284,4189.0,4188.9,17.68076157]
[1758640560254,0.35478284,4189.0,4188.9,17.56156157]
[1758640560454,0.35478284,4189.0,4188.9,17.68076157]
[1758640560651,0.22127443,4189.0,4188.9,17.68076157]
[1758640560856,0.13354128,4189.7,4189.6,2.3868627]
[1758640561101,0.13354128,4189.7,4189.6,3.0571627]
[1758640561263,0.13354128,4189.7,4189.6,3.1763627]
[1758640563606,0.13354128,4189.7,4189.6,3.20023132]
[1758640563796,0.41610798,4189.8,4189.7,2.38680573]
[1758640563993,0.54962757,4189.8,4189.7,2.62290573]
[1758640564198,0.54962757,4189.8,4189.7,3.05710573]
[1758640564369,0.54962757,4189.8,4189.7,17.55710573]
[1758640566413,8.62563783,4189.8,4189.7,14.5]
[1758640566574,10.051584,4189.8,4189.7,14.5]
[1758640567003,9.373084,4189.8,4189.7,14.5]
[1758640567732,8.45928123,4189.8,4189.7,14.5]
[1758640568285,4.28408123,4189.8,4189.7,17.55710573]
[1758640568484,0.77193783,4189.8,4189.7,17.55710573]
[1758640568713,0.63841824,4189.8,4189.7,17.55710573]
[1758640570431,0.77175525,4189.8,4189.7,16.88680573]
[1758640570994,0.77175525,4189.8,4189.7,14.5]
[1758640571192,0.99975525,4189.8,4189.7,14.5]
[1758640571398,1.80991822,4189.8,4189.7,14.5]
[1758640571753,0.77175525,4189.8,4189.7,14.5]
[1758640572033,0.63841824,4189.8,4189.7,17.56550573]
[1758640572337,0.41610798,4189.8,4189.7,17.56550573]
[1758640572520,0.63831543,4189.8,4189.7,17.56550573]
[1758640572829,0.35554046,4189.8,4189.7,14.5]
[1758640573030,0.35554046,4189.8,4189.7,17.32540573]
[1758640573231,0.35554046,4189.8,4189.7,14.5]
[1758640573398,0.35554046,4189.8,4189.7,16.88680573]
[1758640574442,0.35554046,4189.8,4189.7,14.5]
[1758640575228,0.35654046,4189.8,4189.7,14.5]
[1758640576038,7.05116119,4189.8,4189.7,14.5]
[1758640576200,10.99824717,4189.8,4189.7,14.5]
[1758640577041,11.79024717,4189.8,4189.7,14.5]
[1758640577215,11.79024717,4189.8,4188.9,0.1232]
[1758640577216,0.792,4189.4,4188.9,0.1232]
[1758640577413,5.38720458,4189.0,4188.9,0.004]
[1758640577736,11.10240131,4189.0,4188.9,0.004]
[1758640578040,11.79000131,4189.0,4188.9,0.004]
[1758640578341,0.86819673,4189.0,4188.9,0.004]
[1758640578501,0.35554046,4189.0,4188.9,3.09383418]
[1758640578705,0.35554046,4189.0,4188.9,1.75591761]
[1758640578914,0.35554046,4189.0,4188.9,0.1232]
[1758640579127,0.35554046,4189.0,4188.9,2.75056157]
[1758640579437,0.35554046,4189.0,4188.9,0.004]
[1758640579644,0.58274046,4189.0,4188.9,0.004]
[1758640579816,1.04234046,4189.0,4188.9,0.004]
[1758640580139,6.42954504,4189.0,4188.9,0.004]
[1758640580329,8.61077703,4189.0,4188.9,0.004]
[1758640580520,8.09734046,4189.0,4188.9,0.004]
[1758640580842,13.08902604,4189.0,4188.9,0.004]
[1758640581401,13.73202682,4189.0,4188.9,0.004]
[1758640582111,13.08902604,4189.0,4188.9,0.004]
[1758640582705,13.73089269,4189.0,4188.9,0.004]
[1758640584136,14.10517708,4189.0,4188.9,0.004]
[1758640584659,13.46331043,4189.0,4188.9,0.004]
[1758640585161,13.88306683,4189.0,4188.9,0.004]
[1758640586554,13.24190298,4189.0,4188.9,0.004]
[1758640586755,12.86761859,4189.0,4188.9,0.004]
[1758640587320,14.93261859,4189.0,4188.9,0.004]
[1758640589180,8.81261859,4189.0,4188.9,0.004]
[1758640589473,14.93261859,4189.0,4188.9,0.004]
[1758640589676,15.57378244,4189.0,4188.9,0.004]
[1758640589825,15.94807918,4189.0,4188.9,0.004]
[1758640590031,15.61610867,4189.0,4188.9,0.004]
[1758640590358,15.24181193,4189.0,4188.9,0.004]
[1758640590826,14.93261859,4189.0,4188.9,0.004]
[1758640591656,15.15501127,4189.0,4188.9,0.004]
[1758640592170,9.34420461,4189.0,4188.9,0.004]
[1758640592375,15.15501127,4189.0,4188.9,0.004]
[1758640593165,15.7954999,4189.0,4188.9,0.004]
[1758640593327,15.15501127,4189.0,4188.9,0.004]
[1758640593752,9.03501127,4189.0,4188.9,0.004]
[1758640593976,9.62041127,4189.0,4188.9,0.004]
[1758640594278,13.67541127,4189.0,4188.9,0.004]
[1758640594781,14.46741127,4189.0,4188.9,0.004]
[1758640597083,14.69541127,4189.0,4188.9,0.004]
[1758640597245,14.46741127,4189.0,4188.9,0.004]
[1758640597559,14.69541127,4189.0,4188.9,0.004]
[1758640597960,14.46741127,4189.0,4188.9,0.004]
[1758640598750,14.69541127,4189.0,4188.9,0.004]
[1758640599134,0.86913411,4189.0,4188.9,2.39126157]
[1758640599337,0.1192,4189.5,4189.0,2.38720458]
[1758640599529,0.74561892,4190.2,4189.1,0.70257147]
[1758640599530,0.22268528,4189.7,4189.1,0.70257147]
[1758640599734,0.13361687,4189.6,4189.2,3.06573654]
[1758640599935,0.22269477,4189.7,4189.6,2.3868627]
[1758640600157,0.35631325,4189.7,4189.6,2.8254627]
[1758640600473,0.35631325,4189.7,4189.6,15.1787]
[1758640600659,7.41131325,4189.7,4189.6,14.5]
[1758640600969,0.792,4189.4,4188.9,0.004]
[1758640601132,0.1192,4189.0,4188.9,0.004]
[1758640601333,3.47551325,4189.0,4188.9,16.89126157]
[1758640601529,3.47551325,4189.0,4188.9,14.504]
[1758640601964,4.26751325,4189.0,4188.9,14.504]
[1758640602169,8.36090582,4189.0,4188.9,0.004]
[1758640602340,5.73260124,4189.0,4188.9,0.004]
[1758640602749,8.11980582,4189.0,4188.9,0.004]
[1758640603870,5.99560124,4189.0,4188.9,0.7063]
[1758640604170,8.99560124,4189.0,4188.9,0.004]
[1758640604341,8.99494062,4189.0,4188.9,0.004]
[1758640604541,7.92397902,4189.0,4188.9,0.004]
[1758640605775,7.92397902,4189.0,4188.9,0.7063]
[1758640605978,7.92397902,4189.0,4188.9,0.004]
[1758640609238,10.3111836,4189.0,4188.9,0.004]
[1758640609436,11.7729836,4189.0,4188.9,0.004]
[1758640609640,13.48122526,4189.0,4188.9,0.004]
[1758640610588,13.05252526,4189.0,4188.9,0.004]
[1758640610906,8.71597902,4189.0,4188.9,0.004]
[1758640611306,11.1031836,4189.0,4188.9,0.004]
[1758640611766,8.71597902,4189.0,4188.9,0.004]
[1758640611968,9.09024324,4189.0,4188.9,0.004]
[1758640612290,9.7327059,4189.0,4188.9,0.004]
[1758640612480,12.12091048,4189.0,4188.9,0.004]
[1758640613288,11.89807633,4189.0,4188.9,0.004]
[1758640613493,9.73398902,4189.0,4188.9,0.004]
[1758640613996,3.87026214,4189.0,4188.9,0.7063]
[1758640614163,3.87028505,4189.0,4188.9,0.7063]
[1758640614360,7.92528505,4189.0,4188.9,0.004]
[1758640615993,3.87028505,4189.0,4188.9,0.7063]
[1758640616182,3.87028505,4189.0,4188.9,2.22733]
[1758640616500,3.35695866,4189.0,4188.9,4.61459157]
[1758640616687,3.87028505,4189.0,4188.9,4.61459157]
[1758640616992,3.35695543,4189.0,4188.9,3.09356157]
[1758640617170,3.87028182,4189.0,4188.9,17.59356157]
[1758640617374,3.35695543,4189.0,4188.9,17.59356157]
[1758640617596,3.35800813,4189.0,4188.9,17.59356157]
[1758640618026,3.35800813,4189.0,4188.9,15.2063]
[1758640618223,3.35800813,4189.0,4188.9,17.59356157]
[1758640619727,3.35800813,4189.0,4188.9,15.2063]
[1758640619929,3.35800813,4189.0,4188.9,14.504]
[1758640620244,7.7203391,4189.0,4188.9,0.004]
[1758640620541,7.80365991,4189.0,4188.9,0.004]
[1758640620722,5.41645533,4189.0,4188.9,0.004]
[1758640620918,7.80365991,4189.0,4188.9,0.004]
[1758640621139,8.04475991,4189.0,4188.9,0.004]
[1758640621309,8.47345991,4189.0,4188.9,0.004]
[1758640621840,9.11592257,4189.0,4188.9,0.004]
[1758640622537,6.72877142,4189.0,4188.9,0.004]
[1758640622710,4.51385061,4189.0,4188.9,0.004]
[1758640623447,3.87138795,4189.0,4188.9,3.09356157]
[1758640623643,0.87138795,4189.0,4188.9,3.09356157]
[1758640623941,0.87138795,4189.0,4188.9,14.504]
[1758640623942,0.35806156,4189.0,4188.9,14.504]
[1758640624446,0.87262381,4189.0,4188.9,14.504]
[1758640624607,1.11372381,4189.0,4188.9,14.504]
[1758640624810,11.97081704,4189.0,4188.9,14.504]
[1758640625323,9.58361246,4189.0,4188.9,14.504]
[1758640626231,12.39951704,4189.0,4188.9,14.504]
[1758640626431,13.0419797,4189.0,4188.9,0.004]
[1758640626660,13.25685142,4189.0,4188.9,0.004]
[1758640628364,12.82815142,4189.0,4188.9,0.004]
[1758640628665,13.25685142,4189.0,4188.9,0.004]
[1758640628968,12.39951704,4189.0,4188.9,0.004]
[1758640629333,12.39871704,4189.0,4188.9,0.004]
[1758640630431,13.68471861,4189.0,4188.9,0.004]
[1758640630633,13.85998734,4189.0,4188.9,0.004]
[1758640630832,13.99405019,4189.0,4188.9,0.004]
[1758640631055,14.36835071,4189.0,4188.9,0.004]
[1758640632548,6.17926157,4188.9,4188.8,0.004]
[1758640632737,6.17948955,4188.5,4188.4,0.004]
[1758640632948,12.39175607,4188.5,4188.4,0.004]
[1758640633154,12.08854494,4188.5,4188.4,0.004]
[1758640633353,12.55864895,4188.5,4188.4,0.004]
[1758640633552,13.79883279,4188.5,4188.4,0.004]
[1758640634669,15.08533726,4188.5,4188.4,0.004]
[1758640635191,13.79883279,4188.5,4188.4,0.004]
[1758640636069,15.08533726,4188.5,4188.4,0.004]
[1758640636267,13.79883279,4188.5,4188.4,0.004]
[1758640636695,13.42449117,4188.5,4188.4,0.004]
[1758640637406,14.70796522,4188.5,4188.4,0.004]
[1758640637693,13.42449117,4188.5,4188.4,0.004]
[1758640641069,13.42449117,4188.5,4188.1,0.004]
[1758640641070,3.17966057,4188.2,4188.1,0.004]
[1758640641263,13.79631127,4188.2,4188.1,0.004]
[1758640641596,14.77960461,4188.2,4188.1,0.004]
[1758640641958,14.10550461,4188.2,4188.1,0.004]
[1758640642158,14.65079013,4188.2,4188.1,0.004]
[1758640642353,6.88331127,4188.2,4188.1,0.6905]
[1758640642571,10.95528534,4188.2,4188.1,0.6905]
[1758640642795,11.74728534,4188.2,4188.1,0.004]
[1758640643091,11.10642262,4188.2,4188.1,0.004]
[1758640644684,20.70410084,4188.2,4188.1,0.004]
[1758640646503,20.70225868,4188.2,4188.1,0.004]
[1758640646795,23.14509628,4188.2,4188.1,0.004]
[1758640647596,23.80595944,4188.2,4188.1,0.004]
[1758640647765,23.67189659,4188.2,4188.1,0.004]
[1758640648096,24.10289659,4188.2,4188.1,0.004]
[1758640648398,23.46199648,4188.2,4188.1,0.004]
[1758640648896,23.59551211,4188.2,4188.1,0.004]
[1758640649094,24.44999097,4188.2,4188.1,0.004]
[1758640649698,23.14393109,4188.2,4188.1,0.004]
[1758640649899,13.41274074,4188.2,4188.1,0.004]
[1758640650095,22.78789648,4188.2,4188.1,0.004]
[1758640650399,23.010412,4188.2,4188.1,0.004]
[1758640650599,23.14389452,4188.2,4188.1,0.004]
[1758640650772,23.14384989,4188.2,4188.1,0.004]
[1758640651097,24.67242875,4188.2,4188.1,0.004]
[1758640651262,24.98162209,4188.2,4188.1,0.004]
[1758640651998,24.24142875,4188.2,4188.1,0.004]
[1758640653602,23.38694989,4188.2,4188.1,0.004]
[1758640653976,24.24142875,4188.2,4188.1,0.004]
[1758640654494,24.24062875,4188.2,4188.1,0.004]
[1758640654699,23.51748481,4188.2,4188.1,0.004]
[1758640654876,19.46248481,4188.2,4188.1,0.004]
[1758640655060,25.58348481,4188.2,4188.1,0.004]
[1758640655264,26.43796367,4188.2,4188.1,0.004]
[1758640655505,27.11206367,4188.2,4188.1,0.004]
[1758640655834,36.16449547,4188.2,4188.1,0.004]
[1758640656604,35.79013404,4188.2,4188.1,0.004]
[1758640656805,6.60811092,4188.1,4187.6,0.004]
[1758640657006,9.2207519,4188.1,4187.6,0.004]
[1758640657229,9.4638519,4188.1,4187.6,0.004]
[1758640658044,10.74629117,4188.1,4187.6,0.004]
[1758640658218,9.4638519,4188.1,4187.6,0.004]
[1758640659009,8.7897519,4188.1,4187.6,0.004]
[1758640659206,24.19823678,4188.1,4187.6,0.2343]
[1758640659405,24.87233678,4188.1,4187.6,0.004]
[1758640659729,24.19823678,4188.1,4187.6,0.004]
[1758640660544,24.44133678,4188.1,4187.6,0.004]
[1758640660703,13.80855856,4188.1,4187.6,0.004]
[1758640661037,13.80855856,4188.1,4187.7,0.2303]
[1758640661038,24.94411069,4188.1,4187.7,0.2303]
[1758640661245,25.50000403,4188.1,4187.6,0.004]
[1758640661422,25.00930242,4188.1,4187.6,0.004]
[1758640662045,24.76260242,4188.1,4187.6,0.004]
[1758640662250,24.76260242,4188.1,4187.8,0.2355]
[1758640662406,24.76260242,4188.1,4187.6,0.004]
[1758640662407,22.38740908,4188.1,4187.6,0.004]
[1758640662607,24.42382433,4188.1,4188.0,0.6874]
[1758640662931,23.14093563,4188.1,4188.0,0.004]
[1758640663146,24.42420577,4188.1,4188.0,0.004]
[1758640663458,24.42420577,4188.1,4188.0,0.6874]
[1758640663662,23.14093563,4188.1,4188.0,0.6874]
[1758640663874,26.64426829,4188.1,4188.0,0.2395]
[1758640664025,26.8670925,4188.1,4188.0,0.004]
[1758640664465,26.8670925,4188.1,4188.0,0.4519]
[1758640664647,26.8670925,4188.1,4188.0,0.6874]
[1758640665564,1.72528228,4188.1,4188.0,0.6874]
[1758640665736,4.92321666,4188.1,4188.0,0.6874]
[1758640666061,0.64222094,4188.6,4188.0,0.6874]
[1758640666261,0.001,4188.8,4188.3,2.38755045]
[1758640666558,0.1202,4188.8,4188.1,0.82647717]
[1758640666774,0.1202,4188.8,4188.6,2.38741451]
[1758640666961,0.1202,4188.8,4188.7,0.6834]
[1758640667264,0.1202,4188.8,4188.7,3.07077555]
[1758640667564,0.001,4188.8,4188.7,3.0946493]
[1758640669644,0.001,4188.8,4188.7,17.5946493]
[1758640669849,0.001,4188.8,4188.7,17.57077555]
[1758640670056,0.001,4188.8,4188.7,20.01361315]
[1758640673801,0.001,4188.8,4188.7,29.61129137]
[1758640673963,0.001,4188.8,4188.7,29.73049137]
[1758640675999,0.001,4188.8,4188.7,33.78349137]
[1758640676183,0.001,4188.8,4188.7,35.84849137]
[1758640676590,0.001,4188.8,4188.7,26.25081315]
[1758640676766,0.001,4188.8,4188.7,20.13281315]
[1758640676966,0.001,4188.8,4188.7,24.18481315]
[1758640679325,0.0002,4188.8,4188.7,24.18481315]
[1758640679504,0.0002,4188.8,4188.7,17.0620376]
[1758640679706,0.0002,4188.8,4188.7,18.6712]
[1758640680012,0.0002,4188.8,4188.7,21.05857555]
[1758640680985,0.0002,4188.8,4188.7,21.74197555]
[1758640683731,0.0002,4188.8,4188.7,17.68997555]
[1758640683926,0.0002,4188.8,4188.7,21.74197555]
[1758640684131,0.0002,4188.8,4188.7,23.50141315]
[1758640684619,0.0002,4188.8,4188.7,24.18481315]
[1758640685136,0.0002,4188.8,4188.7,23.50141315]
[1758640685291,0.0002,4188.8,4188.7,14.6192]
[1758640685492,0.0002,4188.8,4188.7,18.552]
[1758640685702,0.2469,4188.8,4188.7,14.5]
[1758640685908,0.7002,4188.8,4188.7,14.5]
[1758640686844,0.1194,4188.8,4188.7,16.88737555]
[1758640687210,0.1194,4188.8,4188.7,14.5]
[1758640687643,3.8194,4188.8,4188.7,18.551]
[1758640687816,4.44009015,4188.8,4188.7,14.5]
[1758640688018,1.44009015,4188.8,4188.7,14.5]
[1758640688349,0.1194,4188.8,4188.7,14.5]
[1758640688651,3.99871856,4188.8,4188.7,14.5]
[1758640688956,3.792,4188.4,4188.0,0.004]
[1758640689246,0.792,4188.2,4188.0,0.004]
[1758640689608,4.492,4188.2,4188.0,0.004]
[1758640690712,5.17995484,4188.2,4188.0,0.004]
[1758640690918,7.70061412,4188.2,4188.0,0.004]
[1758640691332,7.92235117,4188.2,4188.0,0.004]
[1758640691728,7.92233811,4188.2,4188.0,0.004]
[1758640692046,7.92237378,4188.2,4188.0,0.004]
[1758640692211,8.43345374,4188.2,4188.0,0.004]
[1758640692738,7.92237378,4188.2,4188.0,0.004]
[1758640693151,8.43359031,4188.2,4188.0,0.004]
[1758640693352,6.04592974,4188.2,4188.0,0.004]
[1758640693557,8.44554744,4188.2,4188.0,0.004]
[1758640693753,8.19884744,4188.2,4188.0,0.004]
[1758640693933,10.82420801,4188.2,4188.0,0.004]
[1758640694138,11.27060801,4188.2,4188.0,0.004]
[1758640694382,4.38454744,4188.2,4188.0,0.004]
[1758640694574,3.35484744,4188.2,4188.0,0.004]
[1758640694870,5.86170801,4188.2,4188.0,0.004]
[1758640695641,3.47404744,4188.2,4188.0,0.004]
[1758640695969,5.86170801,4188.2,4188.0,0.004]
[1758640696470,3.47404744,4188.2,4188.0,0.004]
[1758640696642,5.86170801,4188.2,4188.0,0.004]
[1758640697066,3.47404744,4188.2,4188.0,0.004]